[Event "Icelandic Open 2019"]
[Site "Akureyri"]
[Date "2019.05.30"]
[Round "7.12"]
[White "Briem, Benedikt"]
[Black "Thorhallsson, Gylfi"]
[Result "1/2-1/2"]
[ECO "A47"]
[WhiteElo "1811"]
[BlackElo "2039"]
[Annotator "NA"]
[PlyCount "97"]
[EventDate "2019.05.25"]
[EventType "swiss"]
[EventCountry "ISL"]
[SourceTitle "playchess.com"]
[Source "ChessBase"]
[SourceQuality "1"]
[TimeControl "40/5400+30:1800+30"]

1. d4 {[%emt 0:00:00]} Nf6 {[%emt 0:01:01]} 2. Nf3 {[%emt 0:00:00]} e6 {[%emt 0:00:16]} 3. Bf4 {[%emt 0:00:00]} b6 {[%emt 0:01:04]} 4. e3 {[%emt 0:00:12]} Bb7 {[%emt 0:00:22]} 5. Bd3 {[%emt 0:00:14]} Be7 {[%emt 0:00:15]} 6. Nbd2 {[%emt 0:00:22]} c5 {[%emt 0:00:37]} 7. c3 {[%emt 0:01:12]} O-O {[%emt 0:01:16]} 8. h3 {[%emt 0:01:21]} d6 {[%emt 0:01:11]} 9. O-O {[%emt 0:02:24]} Nbd7 {[%emt 0:03:13]} 10. Qe2 {[%emt 0:01:59]} Qc7 {[%emt 0:09:16]} 11. e4 {[%emt 0:01:30]} e5 {[%emt 0:01:28]} 12. Bh2 {[%emt 0:00:43]} Rfe8 {[%emt 0:03:10]} 13. dxe5 {[%emt 0:03:17]} dxe5 {[%emt 0:00:47]} 14. Nc4 {[%emt 0:00:53]} Bf8 {[%emt 0:01:37]} 15. Nfd2 {[%emt 0:04:53]} b5 {[%emt 0:02:17]} 16. Ne3 {[%emt 0:06:05]} c4 {[%emt 0:00:27]} 17. Bc2 {[%emt 0:00:23]} Rad8 {[%emt 0:00:40]} 18. a4 {[%emt 0:13:20]} a6 {[%emt 0:02:46]} 19. axb5 {[%emt 0:02:52]} axb5 {[%emt 0:00:08]} 20. Ng4 {[%emt 0:10:54]} Nxg4 {[%emt 0:12:31]} 21. hxg4 {[%emt 0:02:24]} Nc5 {[%emt 0:01:25]} 22. Nf3 {[%emt 0:02:16]} Bc8 {[%emt 0:02:01]} 23. g5 {[%emt 0:05:35]} Bg4 {[%emt 0:01:33]} 24. Rfd1 {[%emt 0:01:02]} g6 {[%emt 0:18:58]} 25. Rxd8 {[%emt 0:02:09]} Rxd8 {[%emt 0:00:58]} 26. Rd1 {[%emt 0:02:10]} Bg7 {[%emt 0:05:45]} 27. Rd5 {[%emt 0:08:26]} Rxd5 {[%emt 0:03:59]} 28. exd5 {[%emt 0:00:12]} Qd8 {[%emt 0:01:10]} 29. Qe3 {[%emt 0:16:26]} Bxf3 {[%emt 0:02:40]} 30. gxf3 {[%emt 0:02:02]} Qxd5 {[%emt 0:01:17]} 31. Kf1 {[%emt 0:02:00]} Nd7 {[%emt 0:06:39]} 32. Ke2 {[%emt 0:01:44]} Bf8 {[%emt 0:02:43]} 33. Be4 {[%emt 0:01:56]} Qe6 {[%emt 0:02:06]} 34. f4 {[%emt 0:01:02]} Bc5 {[%emt 0:02:37]} 35. Qf3 {[%emt 0:01:33]} exf4 {[%emt 0:00:50]} 36. Qxf4 {[%emt 0:00:39]} f5 {[%emt 0:01:18]} 37. gxf6 {[%emt 0:00:38]} Nxf6 {[%emt 0:00:09]} 38. f3 {[%emt 0:00:47]} Bf8 {[%emt 0:04:25]} 39. Bg1 {[%emt 0:01:54]} Bd6 {[%emt 0:00:46]} 40. Qh4 {[%emt 0:00:00]} Nxe4 {[%emt 0:00:00]} 41. fxe4 {[%emt 0:01:49]} Be7 {[%emt 0:04:36]} 42. Qf4 {[%emt 0:00:27]} g5 {[%emt 0:00:38]} 43. Qb8+ {[%emt 0:00:50]} Kf7 {[%emt 0:00:12]} 44. Qxb5 {[%emt 0:00:41]} Qxe4+ {[%emt 0:00:28]} 45. Be3 {[%emt 0:00:27]} Bf6 {[%emt 0:02:54]} 46. b3 {[%emt 0:02:39]} cxb3 {[%emt 0:15:06]} 47. Qxb3+ {[%emt 0:00:21]} Qe6 {[%emt 0:00:28]} 48. Qxe6+ {[%emt 0:00:16]} Kxe6 {[%emt 0:00:11]} 49. Bxg5 {[%emt 0:00:07]} 1/2-1/2

[Event "Icelandic Open 2019"]
[Site "Akureyri"]
[Date "2019.05.30"]
[Round "7.13"]
[White "Pinto, Mark"]
[Black "Johannsson, Birkir Isak"]
[Result "1/2-1/2"]
[ECO "D00"]
[WhiteElo "2082"]
[BlackElo "1981"]
[Annotator "NA"]
[PlyCount "88"]
[EventDate "2019.05.25"]
[EventType "swiss"]
[EventCountry "ISL"]
[SourceTitle "playchess.com"]
[Source "ChessBase"]
[SourceQuality "1"]
[TimeControl "40/5400+30:1800+30"]

1. d4 {[%emt 0:01:08]} d5 {[%emt 0:00:00]} 2. Bf4 {[%emt 0:00:06]} c5 {[%emt 0:00:00]} 3. e3 {[%emt 0:00:06]} Nc6 {[%emt 0:00:00]} 4. c3 {[%emt 0:00:11]} Nf6 {[%emt 0:00:00]} 5. Nd2 {[%emt 0:04:07]} Bf5 {[%emt 0:00:37]} 6. Ngf3 {[%emt 0:00:52]} Qb6 {[%emt 0:01:06]} 7. Qb3 {[%emt 0:00:00]} c4 {[%emt 0:00:23]} 8. Qxb6 {[%emt 0:00:00]} axb6 {[%emt 0:00:02]} 9. a3 {[%emt 0:00:07]} b5 {[%emt 0:03:26]} 10. Rc1 {[%emt 0:00:07]} h6 $15 {[%emt 0:01:38]} 11. h3 {[%emt 0:00:07]} e6 {[%emt 0:00:30]} 12. Ne5 {[%emt 0:00:08]} Be7 {[%emt 0:02:00]} 13. Be2 {[%emt 0:00:11]} Ne4 {[%emt 0:08:37]} 14. Nxe4 {[%emt 0:14:14]} Bxe4 {[%emt 0:01:43]} 15. O-O {[%emt 0:01:58]} Nxe5 {[%emt 0:03:59]} 16. Bxe5 {[%emt 0:00:15]} f6 {[%emt 0:03:53]} 17. Bg3 {[%emt 0:00:15]} Kd7 {[%emt 0:01:37]} 18. f3 {[%emt 0:03:23]} Bf5 {[%emt 0:03:22]} 19. Rfe1 {[%emt 0:00:15]} g5 {[%emt 0:04:35]} 20. Bf1 {[%emt 0:00:33]} Bg6 {[%emt 0:01:25]} 21. e4 {[%emt 0:00:29]} Rae8 {[%emt 0:01:38]} 22. Rcd1 {[%emt 0:06:07]} Bd8 {[%emt 0:02:26]} 23. Kf2 {[%emt 0:11:19]} h5 {[%emt 0:04:28]} 24. Ra1 {[%emt 0:11:34]} h4 {[%emt 0:03:28]} 25. Bh2 {[%emt 0:00:18]} Bc7 {[%emt 0:00:26]} 26. Bxc7 Kxc7 {[%emt 0:00:01]} 27. exd5 {[%emt 0:05:48]} exd5 {[%emt 0:00:12]} 28. Rxe8 {[%emt 0:04:23]} Rxe8 {[%emt 0:00:57]} 29. Re1 {[%emt 0:00:06]} Rxe1 {[%emt 0:05:19]} 30. Kxe1 {[%emt 0:00:07]} f5 {[%emt 0:00:15]} 31. f4 {[%emt 0:05:42]} g4 {[%emt 0:00:48]} 32. g3 {[%emt 0:13:02]} hxg3 {[%emt 0:18:14]} 33. Bg2 {[%emt 0:00:04]} Kd6 {[%emt 0:04:22]} 34. Kf1 {[%emt 0:00:15]} Bh5 {[%emt 0:02:45]} 35. Kg1 {[%emt 0:03:31]} Ke6 {[%emt 0:02:12]} 36. h4 {[%emt 0:00:28]} Bf7 {[%emt 0:01:29]} 37. Bf1 {[%emt 0:00:07]} Kf6 {[%emt 0:00:13]} 38. Kg2 {[%emt 0:00:06]} Kg6 {[%emt 0:00:13]} 39. Kxg3 {[%emt 0:00:00]} Kh5 {[%emt 0:00:00]} 40. Be2 {[%emt 0:00:00]} Be6 {[%emt 0:00:00]} 41. Bd1 {[%emt 0:00:28]} Bd7 {[%emt 0:01:58]} 42. Bc2 {[%emt 0:00:27]} Kg6 {[%emt 0:00:12]} 43. b3 {[%emt 0:00:22]} Kh5 {[%emt 0:00:13]} 44. Bd1 {[%emt 0:08:03]} Kg6 {[%emt 0:00:48]} 1/2-1/2

[Event "Icelandic Open 2019"]
[Site "Akureyri"]
[Date "2019.05.30"]
[Round "7.14"]
[White "Ragnarsson, Johann"]
[Black "Gower, Sam"]
[Result "0-1"]
[ECO "E20"]
[WhiteElo "1968"]
[BlackElo "2069"]
[Annotator "NA"]
[PlyCount "90"]
[EventDate "2019.05.25"]
[EventType "swiss"]
[EventCountry "ISL"]
[SourceTitle "playchess.com"]
[Source "ChessBase"]
[SourceQuality "1"]
[TimeControl "40/5400+30:1800+30"]

1. d4 {[%emt 0:03:39]} Nf6 {[%emt 0:00:00]} 2. c4 {[%emt 0:00:09]} e6 {[%emt 0:00:00]} 3. Nc3 {[%emt 0:00:11]} Bb4 {[%emt 0:00:17]} 4. f3 {[%emt 0:00:07]} d5 {[%emt 0:00:17]} 5. a3 {[%emt 0:00:08]} Be7 {[%emt 0:00:31]} 6. e4 {[%emt 0:00:59]} dxe4 {[%emt 0:00:15]} 7. fxe4 {[%emt 0:00:08]} c5 {[%emt 0:00:23]} 8. d5 {[%emt 0:14:37]} exd5 {[%emt 0:00:07]} 9. exd5 {[%emt 0:00:39]} O-O {[%emt 0:00:32]} 10. Qc2 {[%emt 0:12:02]} Re8 {[%emt 0:04:30]} 11. Be2 {[%emt 0:03:02]} Bd6 {[%emt 0:06:02]} 12. Nf3 {[%emt 0:03:11]} Bg4 {[%emt 0:00:40]} 13. O-O {[%emt 0:00:14]} Nbd7 {[%emt 0:00:41]} 14. Bg5 {[%emt 0:06:44]} h6 {[%emt 0:02:47]} 15. Bh4 {[%emt 0:03:33]} Qb8 {[%emt 0:01:07]} 16. h3 {[%emt 0:01:50]} Bh5 {[%emt 0:00:41]} 17. Bd3 {[%emt 0:03:39]} Bxf3 {[%emt 0:22:57]} 18. Rxf3 {[%emt 0:04:37]} g5 {[%emt 0:04:31]} 19. Bf2 {[%emt 0:16:12]} Bf4 {[%emt 0:13:04]} 20. Ne4 {[%emt 0:02:58]} Nxe4 {[%emt 0:05:27]} 21. Bxe4 {[%emt 0:00:12]} Qd6 {[%emt 0:10:42]} 22. g3 {[%emt 0:03:20]} Be5 {[%emt 0:00:21]} 23. Rf1 {[%emt 0:01:21]} Re7 {[%emt 0:02:37]} 24. Bf5 {[%emt 0:06:17]} Nf6 {[%emt 0:04:39]} 25. Qd2 {[%emt 0:00:07]} Kg7 {[%emt 0:02:52]} 26. Kg2 {[%emt 0:00:58]} Rg8 {[%emt 0:01:14]} 27. Bb1 {[%emt 0:01:36]} g4 {[%emt 0:04:40]} 28. hxg4 {[%emt 0:02:54]} Nxg4 {[%emt 0:00:26]} 29. Qd3 {[%emt 0:00:08]} Kf8 {[%emt 0:02:46]} 30. Qf5 {[%emt 0:02:51]} Nxf2 {[%emt 0:03:25]} 31. R1xf2 {[%emt 0:00:50]} Bxg3 {[%emt 0:02:14]} 32. Qc8+ {[%emt 0:05:23]} Kg7 {[%emt 0:00:08]} 33. Qg4+ {[%emt 0:00:22]} Kh8 {[%emt 0:00:22]} 34. Rxg3 {[%emt 0:01:01]} Rxg4 {[%emt 0:00:12]} 35. Rxg4 {[%emt 0:00:01]} Qe5 {[%emt 0:03:39]} 36. Be4 {[%emt 0:00:27]} Qh5 {[%emt 0:00:33]} 37. Rff4 {[%emt 0:01:07]} Rxe4 {[%emt 0:00:51]} 38. Rxe4 {[%emt 0:00:32]} f5 {[%emt 0:00:06]} 39. Kg3 {[%emt 0:00:35]} fxg4 {[%emt 0:00:58]} 40. Rxg4 {[%emt 0:00:00]} Qe5+ {[%emt 0:00:00]} 41. Kf3 {[%emt 0:08:08]} b5 {[%emt 0:01:30]} 42. Re4 {[%emt 0:07:11]} Qf5+ {[%emt 0:01:51]} 43. Ke3 {[%emt 0:03:45]} bxc4 {[%emt 0:01:55]} 44. Re8+ {[%emt 0:00:08]} Kg7 {[%emt 0:00:13]} 45. d6 {[%emt 0:00:16]} Qd3+ {[%emt 0:00:29]} 0-1

[Event "Icelandic Open 2019"]
[Site "Akureyri"]
[Date "2019.05.30"]
[Round "7.15"]
[White "Kristjansson, Olafur"]
[Black "Eiriksson, Sigurdur"]
[Result "1-0"]
[ECO "B07"]
[WhiteElo "2069"]
[BlackElo "1811"]
[Annotator "NA"]
[PlyCount "59"]
[EventDate "2019.05.25"]
[EventType "swiss"]
[EventCountry "ISL"]
[SourceTitle "playchess.com"]
[Source "ChessBase"]
[SourceQuality "1"]
[TimeControl "40/5400+30:1800+30"]

1. e4 {[%emt 0:00:00]} d6 {[%emt 0:00:45]} 2. d4 {[%emt 0:00:00]} g6 {[%emt 0:00:19]} 3. Nc3 {[%emt 0:03:43]} Bg7 {[%emt 0:01:10]} 4. Be3 {[%emt 0:00:15]} Nf6 {[%emt 0:00:36]} 5. f3 {[%emt 0:00:14]} O-O {[%emt 0:02:12]} 6. Qd2 {[%emt 0:00:10]} a6 {[%emt 0:02:35]} 7. O-O-O {[%emt 0:00:35]} b5 {[%emt 0:01:24]} 8. h4 {[%emt 0:07:50]} c6 {[%emt 0:01:07]} 9. h5 {[%emt 0:01:18]} Qa5 {[%emt 0:00:28]} 10. hxg6 {[%emt 0:03:08]} fxg6 {[%emt 0:00:25]} 11. Bh6 {[%emt 0:00:54]} Rf7 {[%emt 0:02:21]} 12. Bxg7 {[%emt 0:04:36]} Rxg7 {[%emt 0:00:34]} 13. e5 {[%emt 0:16:20]} Ne8 {[%emt 0:05:52]} 14. exd6 {[%emt 0:10:20]} Nxd6 {[%emt 0:02:34]} 15. a3 {[%emt 0:02:16]} Be6 {[%emt 0:03:23]} 16. Qe3 {[%emt 0:07:37]} Bd7 {[%emt 0:07:26]} 17. Qe5 {[%emt 0:01:37]} Qb6 {[%emt 0:01:52]} 18. Nh3 {[%emt 0:01:24]} Qc7 {[%emt 0:08:33]} 19. Ng5 {[%emt 0:03:56]} Ne8 {[%emt 0:00:54]} 20. Qe3 {[%emt 0:00:41]} a5 {[%emt 0:02:59]} 21. d5 {[%emt 0:08:40]} Nd6 {[%emt 0:05:03]} 22. dxc6 {[%emt 0:05:39]} Nxc6 {[%emt 0:01:23]} 23. Nxb5 {[%emt 0:05:39]} Nxb5 {[%emt 0:04:00]} 24. Bc4+ {[%emt 0:02:26]} Kh8 {[%emt 0:02:11]} 25. Bxb5 {[%emt 0:02:25]} Rc8 {[%emt 0:01:02]} 26. Kb1 {[%emt 0:03:57]} e5 {[%emt 0:19:35]} 27. Bxc6 {[%emt 0:02:18]} Qxc6 {[%emt 0:00:41]} 28. Qxe5 {[%emt 0:00:19]} Qxc2+ {[%emt 0:00:31]} 29. Ka1 {[%emt 0:00:08]} Kg8 {[%emt 0:02:38]} 30. Rxd7 {[%emt 0:00:28]} 1-0

[Event "Icelandic Open 2019"]
[Site "Akureyri"]
[Date "2019.05.31"]
[Round "8.3"]
[White "Gunnarsson, Jon Viktor"]
[Black "Gislason, Gudmundur"]
[Result "1-0"]
[ECO "B46"]
[WhiteElo "2452"]
[BlackElo "2288"]
[Annotator "ChessBase"]
[PlyCount "91"]
[EventDate "2019.05.25"]
[EventType "swiss"]
[EventCountry "ISL"]
[SourceTitle "playchess.com"]
[Source "ChessBase"]
[SourceQuality "1"]
[TimeControl "40/5400+30:1800+30"]

1. e4 {[%emt 0:00:00]} c5 {[%emt 0:00:00]} 2. Nf3 {[%emt 0:00:02]} Nc6 {[%emt 0:00:00]} 3. Nc3 {[%emt 0:00:38]} a6 {[%emt 0:03:20]} 4. d4 {[%emt 0:01:41]} cxd4 {[%emt 0:02:43]} 5. Nxd4 {[%emt 0:00:53]} e6 {[%emt 0:01:19]} 6. Nxc6 {[%emt 0:04:24]} bxc6 {[%emt 0:00:31]} 7. Bd3 {[%emt 0:01:10]} Qc7 {[%emt 0:01:13]} 8. O-O {[%emt 0:02:18]} Nf6 {[%emt 0:04:17]} 9. Qe2 {[%emt 0:10:12]} d5 {[%emt 0:08:14]} 10. f4 {[%emt 0:03:56]} Be7 {[%emt 0:01:50]} 11. e5 {[%emt 0:05:49]} Nd7 {[%emt 0:00:07]} 12. Na4 {[%emt 0:01:47]} c5 {[%emt 0:24:24]} 13. c4 {[%emt 0:05:29]} Bb7 {[%emt 0:02:25]} 14. b3 {[%emt 0:07:59]} d4 {[%emt 0:08:29]} 15. Bd2 {[%emt 0:02:34]} g6 {[%emt 0:02:25]} 16. Be4 {[%emt 0:10:43]} Bxe4 {[%emt 0:00:13]} 17. Qxe4 {[%emt 0:00:05]} O-O {[%emt 0:00:13]} 18. g4 {[%emt 0:05:51]} Rae8 {[%emt 0:04:36]} 19. Rae1 {[%emt 0:06:36]} Bh4 {[%emt 0:01:25]} 20. Re2 {[%emt 0:01:29]} f6 {[%emt 0:08:02]} 21. exf6 {[%emt 0:02:06]} Bxf6 {[%emt 0:03:58]} 22. Nb2 {[%emt 0:05:25]} Kh8 {[%emt 0:11:01]} 23. Nd3 {[%emt 0:02:05]} a5 {[%emt 0:00:16]} 24. Rf3 {[%emt 0:05:27]} Bd8 {[%emt 0:03:09]} 25. Rh3 {[%emt 0:01:50]} Kg8 {[%emt 0:00:29]} 26. g5 {[%emt 0:01:41]} Rf5 {[%emt 0:00:43]} 27. Nf2 {[%emt 0:00:34]} h5 {[%emt 0:00:36]} 28. gxh6 {[%emt 0:05:27]} Kh7 {[%emt 0:00:30]} 29. Qg2 {[%emt 0:01:43]} e5 {[%emt 0:01:29]} 30. Rg3 {[%emt 0:01:16]} Rg8 {[%emt 0:00:17]} 31. Nd3 {[%emt 0:01:31]} exf4 {[%emt 0:00:20]} 32. Bxf4 {[%emt 0:00:35]} Rxf4 {[%emt 0:00:26]} 33. Nxf4 {[%emt 0:00:04]} Qxf4 {[%emt 0:00:45]} 34. Rf2 {[%emt 0:01:41]} Qxh6 {[%emt 0:04:30]} 35. Rh3 {[%emt 0:00:41]} Bh4 {[%emt 0:00:28]} 36. Qg4 {[%emt 0:01:16]} Bxf2+ {[%emt 0:01:00]} 37. Kxf2 {[%emt 0:00:42]} Rf8+ {[%emt 0:00:38]} 38. Kg2 {[%emt 0:00:34]} Nf6 {[%emt 0:01:07]} 39. Rxh6+ {[%emt 0:00:23]} Kxh6 {[%emt 0:00:20]} 40. Qf4+ {[%emt 0:00:00]} Kg7 {[%emt 0:00:00]} 41. Qe5 {[%emt 0:12:15]} Rf7 {[%emt 0:06:30]} 42. Kf1 {[%emt 0:06:02]} d3 {[%emt 0:06:23]} 43. Ke1 {[%emt 0:01:08]} Rd7 {[%emt 0:02:17]} 44. Kd1 {[%emt 0:02:18]} d2 {[%emt 0:00:17]} 45. Qxc5 {[%emt 0:00:45]} Kf7 {[%emt 0:02:41]} 46. Qe5 {[%emt 0:02:38]} 1-0

[Event "Icelandic Open 2019"]
[Site "Akureyri"]
[Date "2019.05.31"]
[Round "8.5"]
[White "Thorhallsson, Simon"]
[Black "Thorfinnsson, Bragi"]
[Result "0-1"]
[ECO "A64"]
[WhiteElo "2184"]
[BlackElo "2451"]
[Annotator "ChessBase"]
[PlyCount "52"]
[EventDate "2019.05.25"]
[EventType "swiss"]
[EventCountry "ISL"]
[SourceTitle "playchess.com"]
[Source "ChessBase"]
[SourceQuality "1"]
[TimeControl "40/5400+30:1800+30"]

1. d4 {[%emt 0:00:00]} Nf6 {[%emt 0:00:06]} 2. c4 {[%emt 0:00:00]} e6 {[%emt 0:00:18]} 3. g3 {[%emt 0:00:23]} c5 {[%emt 0:04:16]} 4. d5 {[%emt 0:00:19]} exd5 {[%emt 0:00:47]} 5. cxd5 {[%emt 0:00:06]} d6 {[%emt 0:00:16]} 6. Nc3 {[%emt 0:00:05]} g6 {[%emt 0:00:28]} 7. Bg2 {[%emt 0:00:15]} Bg7 {[%emt 0:00:24]} 8. Nf3 {[%emt 0:00:06]} O-O {[%emt 0:00:51]} 9. O-O {[%emt 0:00:06]} a6 {[%emt 0:01:56]} 10. a4 {[%emt 0:00:18]} Nbd7 {[%emt 0:02:06]} 11. Nd2 {[%emt 0:10:23]} Re8 {[%emt 0:02:53]} 12. h3 {[%emt 0:09:47]} Rb8 {[%emt 0:06:07]} 13. Nc4 {[%emt 0:03:15]} Ne5 {[%emt 0:00:00]} 14. Na3 {[%emt 0:05:10]} Nh5 {[%emt 0:00:00]} 15. e4 {[%emt 0:03:31]} Bd7 {[%emt 0:02:17]} 16. g4 {[%emt 0:13:06]} Nf6 {[%emt 0:00:44]} 17. f4 {[%emt 0:00:57]} Nexg4 {[%emt 0:00:51]} 18. hxg4 {[%emt 0:00:24]} Nxg4 {[%emt 0:00:11]} 19. Nc2 {[%emt 0:01:20]} Qh4 {[%emt 0:11:23]} 20. Rf3 {[%emt 0:04:14]} f5 {[%emt 0:06:48]} 21. e5 {[%emt 0:10:36]} dxe5 {[%emt 0:02:49]} 22. Ne2 {[%emt 0:08:23]} b5 {[%emt 0:10:26]} 23. a5 {[%emt 0:06:06]} b4 {[%emt 0:01:31]} 24. fxe5 {[%emt 0:00:26]} Bxe5 {[%emt 0:01:25]} 25. Nf4 {[%emt 0:02:52]} Qh2+ {[%emt 0:02:42]} 26. Kf1 {[%emt 0:00:05]} Bxf4 {[%emt 0:00:37]} 0-1

[Event "Icelandic Open 2019"]
[Site "Akureyri"]
[Date "2019.05.31"]
[Round "8.6"]
[White "Thorfinnsson, Bjorn"]
[Black "Karlsson, Mikael Johann"]
[Result "0-1"]
[ECO "E21"]
[WhiteElo "2389"]
[BlackElo "2146"]
[Annotator "ChessBase"]
[PlyCount "62"]
[EventDate "2019.05.25"]
[EventType "swiss"]
[EventCountry "ISL"]
[SourceTitle "playchess.com"]
[Source "ChessBase"]
[SourceQuality "1"]
[TimeControl "40/5400+30:1800+30"]

1. d4 {[%emt 0:00:12]} Nf6 {[%emt 0:00:00]} 2. c4 {[%emt 0:00:53]} e6 {[%emt 0:00:42]} 3. Nf3 {[%emt 0:01:07]} b6 {[%emt 0:00:07]} 4. g3 {[%emt 0:00:06]} Bb7 {[%emt 0:00:02]} 5. Bg2 {[%emt 0:00:06]} Bb4+ {[%emt 0:01:33]} 6. Nc3 {[%emt 0:00:58]} d6 {[%emt 0:00:15]} 7. O-O {[%emt 0:00:32]} Bxc3 {[%emt 0:00:02]} 8. bxc3 {[%emt 0:00:06]} Nbd7 {[%emt 0:00:08]} 9. h3 {[%emt 0:06:53]} h6 {[%emt 0:01:54]} 10. g4 {[%emt 0:00:22]} Qe7 {[%emt 0:04:51]} 11. Bf4 {[%emt 0:01:13]} g5 {[%emt 0:05:38]} 12. Be3 {[%emt 0:01:55]} Ne4 {[%emt 0:02:17]} 13. d5 {[%emt 0:01:54]} O-O-O {[%emt 0:11:07]} 14. Nd4 {[%emt 0:03:13]} Ndc5 {[%emt 0:09:30]} 15. Bxe4 {[%emt 0:10:57]} Nxe4 {[%emt 0:00:07]} 16. Nc6 {[%emt 0:00:05]} Bxc6 {[%emt 0:00:32]} 17. dxc6 {[%emt 0:00:05]} Kb8 {[%emt 0:02:08]} 18. Qa4 {[%emt 0:04:39]} Qe8 {[%emt 0:00:18]} 19. f4 {[%emt 0:11:42]} f5 {[%emt 0:14:38]} 20. gxf5 {[%emt 0:12:36]} exf5 {[%emt 0:00:10]} 21. Bd4 {[%emt 0:03:18]} Rg8 {[%emt 0:01:46]} 22. fxg5 {[%emt 0:04:11]} Rxg5+ {[%emt 0:00:06]} 23. Kh2 {[%emt 0:00:07]} Nxc3 {[%emt 0:03:19]} 24. Qc2 {[%emt 0:00:14]} Qxc6 {[%emt 0:00:09]} 25. Rf3 {[%emt 0:01:09]} Ne4 {[%emt 0:00:57]} 26. Be3 {[%emt 0:00:02]} Rg6 {[%emt 0:03:39]} 27. Rg1 {[%emt 0:01:19]} Rxg1 {[%emt 0:02:13]} 28. Bxg1 {[%emt 0:00:04]} Rg8 {[%emt 0:01:42]} 29. Rxf5 {[%emt 0:00:44]} Nd2 {[%emt 0:02:28]} 30. Rd5 {[%emt 0:00:55]} Nf1+ {[%emt 0:00:44]} 31. Kh1 {[%emt 0:00:19]} Qd7 {[%emt 0:00:09]} 0-1

[Event "Icelandic Open 2019"]
[Site "Akureyri"]
[Date "2019.05.31"]
[Round "8.7"]
[White "Sarkar, Justin"]
[Black "Stefansson, Vignir Vatnar"]
[Result "1-0"]
[ECO "A88"]
[WhiteElo "2358"]
[BlackElo "2291"]
[Annotator "ChessBase"]
[PlyCount "70"]
[EventDate "2019.05.25"]
[EventType "swiss"]
[EventCountry "ISL"]
[SourceTitle "playchess.com"]
[Source "ChessBase"]
[SourceQuality "1"]
[TimeControl "40/5400+30:1800+30"]

1. d4 {[%emt 0:00:00]} f5 {[%emt 0:00:00]} 2. c4 {[%emt 0:00:00]} Nf6 {[%emt 0:00:00]} 3. Nc3 {[%emt 0:00:25]} g6 {[%emt 0:00:00]} 4. g3 {[%emt 0:00:18]} Bg7 {[%emt 0:00:00]} 5. Bg2 {[%emt 0:00:07]} O-O {[%emt 0:00:00]} 6. Nf3 {[%emt 0:00:54]} d6 {[%emt 0:00:00]} 7. O-O {[%emt 0:00:13]} c6 {[%emt 0:00:01]} 8. Re1 {[%emt 0:02:30]} Na6 {[%emt 0:03:30]} 9. b3 {[%emt 0:03:56]} Bd7 {[%emt 0:00:27]} 10. e4 {[%emt 0:17:22]} fxe4 {[%emt 0:00:26]} 11. Nxe4 {[%emt 0:00:06]} Nxe4 {[%emt 0:00:04]} 12. Rxe4 {[%emt 0:00:06]} Bf5 {[%emt 0:00:27]} 13. Rh4 {[%emt 0:01:26]} e5 {[%emt 0:08:24]} 14. Bg5 {[%emt 0:07:31]} Qc7 {[%emt 0:04:33]} 15. Qd2 {[%emt 0:03:03]} e4 {[%emt 0:07:21]} 16. Ne1 {[%emt 0:00:08]} d5 {[%emt 0:01:41]} 17. Nc2 {[%emt 0:01:24]} Qd7 {[%emt 0:01:06]} 18. cxd5 {[%emt 0:09:48]} cxd5 {[%emt 0:01:55]} 19. Ne3 {[%emt 0:00:09]} Nc7 {[%emt 0:02:13]} 20. f3 {[%emt 0:24:51]} Ne6 {[%emt 0:05:03]} 21. Bh6 {[%emt 0:00:50]} Nxd4 {[%emt 0:04:26]} 22. Bxg7 {[%emt 0:00:11]} Qxg7 {[%emt 0:00:24]} 23. Rd1 {[%emt 0:00:46]} g5 {[%emt 0:19:13]} 24. Nxf5 {[%emt 0:00:56]} Rxf5 {[%emt 0:06:59]} 25. fxe4 {[%emt 0:03:20]} dxe4 {[%emt 0:00:11]} 26. Rxe4 {[%emt 0:00:18]} Nc6 {[%emt 0:01:38]} 27. Bh3 {[%emt 0:01:20]} Rf6 {[%emt 0:00:23]} 28. Qd7 {[%emt 0:02:26]} Raf8 {[%emt 0:02:42]} 29. Be6+ {[%emt 0:03:26]} Kh8 {[%emt 0:00:03]} 30. Qxg7+ {[%emt 0:00:09]} Kxg7 {[%emt 0:00:02]} 31. Rd7+ {[%emt 0:00:31]} Kh8 {[%emt 0:06:26]} 32. Rxb7 {[%emt 0:01:32]} Rf1+ {[%emt 0:00:46]} 33. Kg2 {[%emt 0:00:02]} h5 {[%emt 0:01:09]} 34. Bd5 {[%emt 0:03:35]} g4 {[%emt 0:04:15]} 35. Rf4 {[%emt 0:00:40]} Rf2+ {[%emt 0:00:02] Rxf8+ Rxf8} 1-0

[Event "Icelandic Open 2019"]
[Site "Akureyri"]
[Date "2019.05.31"]
[Round "8.8"]
[White "Bergsson, Stefan"]
[Black "Ptacnikova, Lenka"]
[Result "1-0"]
[ECO "B45"]
[WhiteElo "2124"]
[BlackElo "2145"]
[Annotator "ChessBase"]
[PlyCount "41"]
[EventDate "2019.05.25"]
[EventType "swiss"]
[EventCountry "ISL"]
[SourceTitle "playchess.com"]
[Source "ChessBase"]
[SourceQuality "1"]
[TimeControl "40/5400+30:1800+30"]

1. e4 {[%emt 0:00:00]} c5 {[%emt 0:00:00]} 2. Nf3 {[%emt 0:03:35]} e6 {[%emt 0:00:20]} 3. d4 {[%emt 0:00:16]} cxd4 {[%emt 0:00:03]} 4. Nxd4 {[%emt 0:00:05]} Nf6 {[%emt 0:01:37]} 5. Nc3 {[%emt 0:01:58]} Nc6 {[%emt 0:00:33]} 6. Ndb5 {[%emt 0:04:08]} Bb4 {[%emt 0:01:22]} 7. Nd6+ {[%emt 0:04:06]} Ke7 {[%emt 0:19:13]} 8. Bf4 {[%emt 0:09:21]} Qa5 {[%emt 0:00:37]} 9. Qd2 {[%emt 0:08:47]} Nh5 {[%emt 0:20:30]} 10. Nc4 {[%emt 0:05:00]} Bxc3 {[%emt 0:00:13]} 11. bxc3 {[%emt 0:04:53]} Qd8 {[%emt 0:08:05]} 12. Bd6+ {[%emt 0:06:30]} Ke8 {[%emt 0:00:11]} 13. Ba3 {[%emt 0:06:04]} Qf6 {[%emt 0:02:42]} 14. Nd6+ {[%emt 0:05:29]} Kd8 {[%emt 0:01:44]} 15. O-O-O {[%emt 0:02:08]} Ne5 {[%emt 0:02:56]} 16. g3 {[%emt 0:02:19]} g5 {[%emt 0:00:39]} 17. Be2 {[%emt 0:01:11]} Ng7 {[%emt 0:02:46]} 18. f4 {[%emt 0:00:30]} gxf4 {[%emt 0:00:10]} 19. gxf4 {[%emt 0:00:03]} Ng6 {[%emt 0:01:07]} 20. Rhf1 {[%emt 0:02:57]} Nf8 {[%emt 0:05:29]} 21. Nxc8 {[%emt 0:08:30]} 1-0